fUSD/lending_fUSD_20250807
["ID","MTS","AMOUNT","RATE_DAILY","PERIOD"]
[377775558,1754549439948,-311.50827482,0.00019049,2]
[377775559,1754549439960,-435.46641233,0.00019049,2]
[377775560,1754549439969,-284.0972198,0.00019049,2]
[377775571,1754549445844,-215.9027802,0.00019049,2]
[377775572,1754549445855,-500.0,0.00019049,2]
[377775573,1754549445867,-239.0972198,0.00019049,2]
[377775574,1754549445955,-260.9027802,0.00019049,2]
[377775577,1754549445965,-500.0,0.00019049,2]
[377775578,1754549445975,-154.59131485,0.00019049,2]
[377775625,1754549593029,500.0,0.00030006,120]
[377775628,1754549610968,250.0,0.00015,2]
[377775629,1754549612038,300.0,0.00017,2]
[377775655,1754549828976,175.0,0.00018893,7]
[377775656,1754549857752,150.0,0.000176,2]
[377775658,1754549881985,152.0,0.00018996,8]
[377775659,1754549882298,152.0,0.00018315,7]
[377775660,1754549882615,152.0,0.00017635,6]
[377775661,1754549882950,152.0,0.00016955,5]
[377775662,1754549883796,152.0,0.00016274,4]
[377775663,1754549884581,152.0,0.00015594,3]
[377775671,1754550059977,182.5,0.00015068,2]
[377775672,1754550060188,182.5,0.00016713,2]
[377775680,1754550103545,208.74,0.00013699,2]
[377775684,1754550196928,500.0,0.00030006,120]
[377775685,1754550280970,636.0,0.00030137,120]
[377775688,1754550369871,150.0,0.000176,2]
[377775690,1754550376235,666.0,0.00018699,3]
[377775712,1754550631805,-160.36231303,0.000183,2]
[377775713,1754550631816,-182.5,0.00018357,2]
[377775714,1754550631826,-165.13768697,0.000184,2]
[377775715,1754550631837,-134.86231303,0.000184,2]
[377775716,1754550631848,-151.0,0.00018443,2]
[377775717,1754550631858,-158.29154839,0.00018679,2]
[377775718,1754550631868,-147.67095045,0.00018752,2]
[377775719,1754550631887,-39.39904955,0.00018752,2]
[377775720,1754550631896,-152.11,0.00018772,2]
[377775721,1754550631905,-722.82646776,0.00018778,2]
[377775722,1754550632089,-477.17353224,0.00018778,2]
[377775723,1754550632098,-451.75578462,0.00018778,2]
[377775855,1754550637829,-5659.99421538,0.00018778,2]
[377775856,1754550637839,-300.0,0.00018779,2]
[377775857,1754550637850,-5000.0,0.0001878,2]
[377775858,1754550637860,-150.0,0.0001878,2]
[377775859,1754550637870,-152.11,0.00018786,2]
[377775860,1754550637880,-152.11,0.00018799,2]
[377775861,1754550637890,-152.11,0.00018813,2]
[377775862,1754550637899,-152.11,0.00018826,2]
[377775863,1754550637908,-152.11,0.00018839,2]
[377775864,1754550637918,-152.11,0.00018853,2]
[377775865,1754550637927,-152.11,0.00018866,2]
[377775866,1754550637937,-1180.01,0.00018878,2]
[377775867,1754550637946,-152.11,0.0001888,2]
[377775868,1754550637956,-152.11,0.00018893,2]
[377775870,1754550637966,-152.11,0.00018906,2]
[377775872,1754550637976,-285.63,0.00018916,2]
[377775874,1754550637986,-1000.0,0.00018916,2]
[377775876,1754550637995,-152.11,0.0001892,2]
[377775878,1754550638005,-151.0,0.0001892,2]
[377775880,1754550638014,-2342.2,0.00018932,2]
[377775882,1754550638023,-152.11,0.00018933,2]
[377775884,1754550638033,-152.11,0.00018947,2]
[377775886,1754550638043,-152.11,0.0001896,2]
[377775888,1754550638053,-600.0,0.00018965,2]
[377775890,1754550638062,-321.07233598,0.00018965,2]
[377775892,1754550638071,-160.0,0.00018965,2]
[377775893,1754550638081,-277.35679052,0.00018965,2]
[377775895,1754550638091,-350.0,0.00019,2]
[377775897,1754550638100,-1252.82,0.00019,2]
[377775899,1754550638110,-1180.01,0.00019178,2]
[377775901,1754550638120,-158.29154838,0.00019238,2]
[377775902,1754550638129,-165.39,0.00019266,2]
[377775905,1754550638139,-366.35,0.00019334,2]
[377775907,1754550638148,-1215.27,0.000195,2]
[377775909,1754550638159,-152.0,0.00019676,9]
[377775911,1754550638168,-158.29154838,0.00019796,2]
[377775913,1754550638177,-1210.878,0.00019855,2]
[377775915,1754550638187,-15380.35883743,0.00019896,2]
[377775917,1754550638199,-1453.23869009,0.00019896,2]
[377776688,1754550645942,-672.90958485,0.00019896,2]
[377779560,1754550710453,887.107109,0.0003013,120]
[377779561,1754550794331,500.0,0.00026692,120]
[377779568,1754550855723,175.0,0.00018986,7]
[377779576,1754550948522,203.25,0.00015068,2]
[377779577,1754550948727,203.25,0.00016719,2]
[377779578,1754550957687,184.02906745,0.00021616,30]
[377779582,1754551003092,500.0,0.00019,7]
[377779583,1754551003964,576.05,0.00019,7]
[377779607,1754551160034,221.91,0.00013699,2]
[377779643,1754551219166,150.0,0.000195,3]
[377779644,1754551222397,150.0,0.00023,30]
[377779645,1754551222715,150.0,0.00023,30]
[377779646,1754551222938,272.5211,0.00023,30]
[377779703,1754551366121,515.0,0.00017438,2]
[377779704,1754551373729,500.0,0.00030136,120]
[377779744,1754551386411,500.0,0.00030135,120]
[377779753,1754551397232,500.0,0.00030134,120]
[377779757,1754551504445,666.0,0.00018928,3]
[377779760,1754551512942,1330.16488278,0.00022,30]
[377779761,1754551524595,305.0,0.000175,2]
[377779762,1754551541652,186.34097372,0.0002,30]
[377779801,1754551561523,1424.9442967,8e-05,2]
[377779802,1754551565748,6700.40632478,0.00015,2]
[377779806,1754551589454,289.81536927,0.00015,2]
[377779813,1754551630271,1573.87070002,0.00015,2]
[377779814,1754551633195,214.73385601,0.00015,2]
[377779815,1754551633219,9880.86092288,0.00015,2]
[377779817,1754551640429,254.62572312,0.000101,2]
[377779819,1754551651814,26337.25563808,0.00023,30]
[377779820,1754551657149,15648.14154276,0.00018,2]
[377779825,1754551674661,6146.60202313,0.00018,2]
[377779829,1754551692257,1352.01957966,0.0001439,2]
[377779832,1754551695801,1000.0,0.000135,2]
[377779833,1754551695959,301.08164678,0.000125,2]
[377779835,1754551702795,1892.55414492,0.0001,2]
[377779836,1754551704782,383.76065901,7.888e-05,2]
[377779837,1754551711648,219.37209365,0.0001,2]
[377779838,1754551715085,2679.64115045,0.0001,2]
[377779841,1754551717965,60999.999999,0.000151,2]
[377779842,1754551718063,262.86191414,0.000107,2]
[377779845,1754551722403,1742.91873114,0.00010136,2]
[377779846,1754551722603,32794.22290393,0.00013368,2]
[377779896,1754551831960,-150.89693109,0.00018321,2]
[377779899,1754551831969,-150.0,0.00018321,2]
[377779901,1754551831978,-93.69440563,0.0001837,2]
[377779903,1754551832004,-109.55559437,0.0001837,2]
[377779904,1754551832013,-191.42817715,0.00018577,2]
[377779905,1754551832022,-300.0,0.00018677,2]
[377779906,1754551832032,-1200.0,0.00018677,2]
[377779907,1754551832042,-140.31991696,0.00018677,2]
[377779908,1754551832055,-159.68008304,0.00018677,2]
[377779909,1754551832065,-7222.69664196,0.00018678,2]
[377779910,1754551832076,-1849.78174631,0.00018678,2]
[377779911,1754551832088,-121.44664849,0.00018678,2]
[377779912,1754551832098,-215.9418,0.00018678,2]
[377779913,1754551832107,-151.44,0.00018691,2]
[377779914,1754551832116,-216.27,0.00018709,2]
[377779915,1754551832126,-151.44,0.00018717,2]
[377779916,1754551832136,-998.48,0.00018736,2]
[377779917,1754551832145,-151.44,0.00018744,2]
[377779918,1754551832155,-151.44,0.00018771,2]
[377779919,1754551832165,-151.44,0.00018797,2]
[377779920,1754551832175,-151.44,0.00018824,2]
[377779921,1754551832184,-201.86,0.00018834,2]
[377779922,1754551832194,-151.44,0.00018851,2]
[377779923,1754551832203,-151.44,0.00018878,2]
[377779924,1754551832214,-315.25692711,0.00018895,2]
[377779925,1754551832225,-634.63657693,0.00018895,2]
[377779926,1754551832240,-50.10649596,0.00018895,2]
[377779927,1754551832250,-277.35679052,0.00018965,2]
[377779928,1754551832259,-279.18310033,0.00018986,2]
[377779929,1754551832297,-6.44689967,0.00018986,2]
[377779930,1754551832308,-500.0,0.00018999,2]
[377779931,1754551832318,-500.0,0.00018999,2]
[377779932,1754551832329,-282.68273096,0.00018999,2]
[377779933,1754551832339,-18945.49327764,0.00019,2]
[377779935,1754551832353,-3416.42304463,0.00019,2]
[377779958,1754551832567,-1033.3236266,0.00019,2]
[377779960,1754551832578,-14021.48001983,0.00019,2]
[377779964,1754551832612,-456.7858882,0.00019,2]
[377779966,1754551832629,-48403.44926538,0.00019,2]
[377779968,1754551832638,-62658.74494266,0.00019,2]
[377779970,1754551832648,-293.08,0.00019308,2]
[377779972,1754551832657,-150.0,0.00019396,2]
[377779974,1754551832667,-1180.01,0.000194,2]
[377779976,1754551832676,-150.0,0.0001945,2]
[377779978,1754551832685,-526.76845075,0.00019462,2]
[377779980,1754551832694,-671.37155488,0.00019527,2]
[377779982,1754551832703,-815.97465901,0.00019593,2]
[377779984,1754551832714,-960.57776314,0.00019658,2]
[377779986,1754551832723,-157.13498,0.000197,2]
[377779988,1754551832732,-1105.18086727,0.00019724,2]
[377779990,1754551832741,-523.78328,0.0001978,2]
[377779992,1754551832751,-1249.7839714,0.00019789,2]
[377779994,1754551832760,-6090.98921478,0.000198,2]
[377779996,1754551832769,-157.13499,0.0001981,2]
[377779998,1754551832779,-1394.38707552,0.00019855,2]
[377780000,1754551832788,-160.0,0.00019876,2]
[377780002,1754551832798,-202.97250471,0.00019876,2]
[377780004,1754551832807,-350.0,0.00019876,2]
[377780006,1754551832817,-1000.0,0.00019878,2]
[377780008,1754551832826,-153.214,0.00019884,2]
[377780010,1754551832836,-1617.47,0.00019884,2]
[377780012,1754551832845,-29337.6446,0.00019888,2]
[377780014,1754551832854,-180.29266792,0.00019896,2]
[377780016,1754551832863,-4976.78697735,0.00019896,2]
[377780018,1754551832872,-523.78327,0.00019896,2]
[377780020,1754551832882,-523.78328,0.00019896,2]
[377780022,1754551832892,-277.45190429,0.00019896,2]
[377780024,1754551832901,-151.13716101,0.00019896,2]
[377780026,1754551832911,-1000.0,0.00019899,2]
[377780028,1754551832920,-7654.30152342,0.000199,2]
[377780064,1754551838493,-454.91378637,0.000199,2]
[377780066,1754551838504,-354.02513124,0.000199,2]
[377780070,1754551838534,-753.53715897,0.000199,2]
[377780072,1754551838544,-828.26284103,0.000199,2]
[377780076,1754551838575,-377.0,0.000199,2]
[377780078,1754551838586,-2297.61459935,0.000199,2]
[377780081,1754551838597,-1497.12255962,0.000199,2]
[377780083,1754551838607,-77.99213696,0.000199,7]
[377780251,1754551840366,-574.8,0.000199,7]
[377780253,1754551840377,-375.375,0.000199,7]
[377780259,1754551840424,-1371.83286304,0.000199,7]
[377780261,1754551840433,-180.29266792,0.000199,2]
[377780263,1754551840443,-208.61663813,0.000199,2]
[377780265,1754551840455,-68.83526617,0.000199,2]
[377780267,1754551840464,-500.52459253,0.0001991,2]
[377780269,1754551840476,-23.25868747,0.0001991,2]
[377780271,1754551840485,-463.84336673,0.0001992,2]
[377780276,1754551840522,-1075.14681292,0.0001992,2]
[377780278,1754551840531,-371.11842708,0.0001993,2]
[377780572,1754551843214,-274.724352,0.0001993,2]
[377780933,1754551846759,-308.15722092,0.0001993,2]
[377780935,1754551846769,-809.0,0.0001993,2]
[377780937,1754551846778,-1225.474,0.0001993,2]
[377780939,1754551846787,-151.0,0.00019975,2]
[377780941,1754551846796,-151.0,0.00019975,2]
[377780943,1754551846805,-151.0,0.00019975,2]
[377780945,1754551846815,-151.0,0.00019975,2]
[377780947,1754551846824,-151.0,0.00019975,2]
[377780949,1754551846833,-151.0,0.00019975,2]
[377780951,1754551846843,-151.0,0.00019975,2]
[377780953,1754551846852,-165.21063,0.00019975,2]
[377780955,1754551846862,-151.0,0.00019978,2]
[377780957,1754551846871,-156.44262,0.00019978,2]
[377780959,1754551846881,-151.0,0.00019978,2]
[377780961,1754551846891,-151.0,0.00019978,2]
[377780963,1754551846900,-151.0,0.00019978,2]
[377780965,1754551846910,-151.0,0.00019978,2]
[377780967,1754551846920,-152.665008,0.00019978,2]
[377780969,1754551846929,-153.957675,0.00019978,2]
[377780971,1754551846939,-175.790721,0.00019978,2]
[377780973,1754551846948,-188.784931,0.00019978,2]
[377780975,1754551846957,-151.0,0.00019978,2]
[377780977,1754551846967,-151.0,0.00019978,2]
[377780979,1754551846980,-151.0,0.00019978,2]
[377780981,1754551846989,-151.0,0.00019978,2]
[377780983,1754551846998,-151.0,0.00019978,2]
[377780984,1754551847007,-151.0,0.00019978,2]
[377780986,1754551847017,-151.0,0.00019978,2]
[377780988,1754551847026,-152.663704,0.00019978,2]
[377780990,1754551847036,-151.0,0.00019978,2]
[377780992,1754551847045,-151.0,0.00019978,2]
[377780994,1754551847056,-151.0,0.00019978,2]
[377780996,1754551847066,-151.0,0.00019978,2]
[377780998,1754551847075,-151.0,0.00019978,2]
[377781000,1754551847084,-151.0,0.00019978,2]
[377781002,1754551847094,-151.0,0.00019978,2]
[377781004,1754551847104,-154.216233,0.00019978,2]
[377781006,1754551847115,-151.0,0.00019978,2]
[377781008,1754551847124,-151.0,0.00019978,2]
[377781010,1754551847134,-151.0,0.00019978,2]
[377781012,1754551847144,-151.0,0.00019978,2]
[377781014,1754551847153,-151.0,0.00019978,2]
[377781016,1754551847163,-151.0,0.00019978,2]
[377781018,1754551847172,-158.343467,0.00019978,2]
[377781020,1754551847182,-160.059017,0.00019978,2]
[377781022,1754551847191,-151.0,0.00019978,2]
[377781024,1754551847201,-151.0,0.00019978,2]
[377781026,1754551847210,-151.0,0.00019978,2]
[377781028,1754551847220,-151.0,0.00019978,2]
[377781030,1754551847229,-187.04792,0.00019978,2]
[377781032,1754551847239,-151.858231,0.00019978,2]
[377781034,1754551847250,-151.0,0.00019978,2]
[377781036,1754551847259,-151.0,0.00019978,2]
[377781038,1754551847268,-212.481356,0.00019978,2]
[377781040,1754551847277,-151.0,0.00019978,2]
[377781042,1754551847287,-151.0,0.00019978,2]
[377781044,1754551847296,-151.0,0.00019978,2]
[377781046,1754551847305,-151.0,0.00019978,2]
[377781048,1754551847314,-151.0,0.00019978,2]
[377781050,1754551847323,-151.0,0.00019978,2]
[377781052,1754551847332,-151.0,0.00019978,2]
[377781054,1754551847341,-151.0,0.00019978,2]
[377781056,1754551847350,-151.0,0.00019978,2]
[377781057,1754551847359,-151.0,0.00019978,2]
[377781059,1754551847368,-203.863616,0.00019978,2]
[377781062,1754551847378,-151.0,0.00019978,2]
[377781063,1754551847387,-154.170189,0.00019978,2]
[377781066,1754551847396,-151.0,0.00019978,2]
[377781067,1754551847405,-151.0,0.00019978,2]
[377781069,1754551847414,-151.0,0.00019978,2]
[377781072,1754551847424,-278.129034,0.00019978,2]
[377781074,1754551847434,-151.0,0.00019978,2]
[377781076,1754551847443,-1720.717896,0.00019978,2]
[377781078,1754551847452,-1720.717896,0.00019978,2]
[377781079,1754551847461,-1720.717896,0.00019978,2]
[377781081,1754551847471,-1720.717896,0.00019978,2]
[377781083,1754551847480,-151.0,0.00019978,2]
[377781085,1754551847490,-151.0,0.00019978,2]
[377781087,1754551847499,-151.0,0.00019978,2]
[377781089,1754551847508,-151.0,0.00019978,2]
[377781091,1754551847517,-151.0,0.00019978,2]
[377781093,1754551847527,-151.0,0.00019978,2]
[377781095,1754551847536,-234.302356,0.00019978,2]
[377781097,1754551847545,-151.0,0.00019978,2]
[377781099,1754551847555,-151.0,0.00019978,2]
[377781101,1754551847564,-151.0,0.00019978,2]
[377781104,1754551847573,-151.0,0.00019978,2]
[377781105,1754551847583,-151.0,0.00019978,2]
[377781107,1754551847592,-151.0,0.00019978,2]
[377781109,1754551847601,-151.0,0.00019978,2]
[377781111,1754551847611,-151.0,0.00019978,2]
[377781114,1754551847620,-420.832803,0.00019978,2]
[377781115,1754551847630,-420.832803,0.00019978,2]
[377781117,1754551847639,-420.832803,0.00019978,2]
[377781120,1754551847648,-420.832803,0.00019978,2]
[377781121,1754551847658,-151.0,0.00019978,2]
[377781124,1754551847667,-151.0,0.00019978,2]
[377781126,1754551847676,-151.0,0.00019978,2]
[377781127,1754551847685,-151.0,0.00019978,2]
[377781129,1754551847695,-151.0,0.00019978,2]
[377781131,1754551847704,-192.881508,0.00019978,2]
[377781160,1754551847940,-151.0,0.00019978,2]
[377781164,1754551847996,-151.0,0.00019978,2]
[377781166,1754551848006,-333.033412,0.00019978,2]
[377781168,1754551848017,-333.033412,0.00019978,2]
[377781170,1754551848026,-333.033412,0.00019978,2]
[377781172,1754551848036,-333.033412,0.00019978,2]
[377781174,1754551848051,-151.0,0.00019978,2]
[377781176,1754551848061,-151.0,0.00019978,2]
[377781178,1754551848071,-151.0,0.00019978,2]
[377781180,1754551848080,-500.0,0.00019986,2]
[377781182,1754551848089,-500.0,0.00019986,2]
[377781184,1754551848099,-700.0,0.00019986,2]
[377781185,1754551848108,-1683.59328378,0.00019986,2]
[377781188,1754551848117,-1000.0,0.00019987,2]
[377781190,1754551848126,-247.44483437,0.00019987,2]
[377781191,1754551848135,-500.0,0.00019987,2]
[377781193,1754551848145,-500.0,0.00019987,2]
[377781195,1754551848154,-226.74096701,0.00019987,2]
[377781197,1754551848163,-414.85969558,0.00019987,2]
[377781199,1754551848172,-168.39762488,0.00019987,2]
[377781201,1754551848181,-290.4017869,0.00019987,2]
[377781203,1754551848191,-162.298649,0.00019988,2]
[377781205,1754551848201,-154.459217,0.00019988,2]
[377781207,1754551848210,-151.0,0.00019988,2]
[377781209,1754551848220,-254.880703,0.00019988,2]
[377781211,1754551848229,-151.0,0.00019988,2]
[377781213,1754551848239,-151.0,0.00019988,2]
[377781215,1754551848248,-151.0,0.00019988,2]
[377781217,1754551848258,-151.0,0.00019988,2]
[377781219,1754551848267,-151.0,0.00019988,2]
[377781221,1754551848278,-154.016332,0.00019988,2]
[377781223,1754551848288,-151.0,0.00019988,2]
[377781225,1754551848297,-151.0,0.00019988,2]
[377781227,1754551848307,-151.0,0.00019988,2]
[377781229,1754551848316,-151.0,0.00019988,2]
[377781231,1754551848326,-151.0,0.00019988,2]
[377781233,1754551848336,-151.0,0.00019988,2]
[377781235,1754551848346,-151.0,0.00019988,2]
[377781237,1754551848355,-151.0,0.00019988,2]
[377781239,1754551848364,-151.0,0.00019988,2]
[377781241,1754551848374,-151.0,0.00019988,2]
[377781243,1754551848383,-151.0,0.00019988,2]
[377781245,1754551848392,-151.0,0.00019988,2]
[377781247,1754551848401,-157.173716,0.00019988,2]
[377781249,1754551848411,-151.0,0.00019988,2]
[377781251,1754551848420,-204.065423,0.00019988,2]
[377781253,1754551848429,-151.0,0.00019988,2]
[377781255,1754551848439,-151.0,0.00019988,2]
[377781257,1754551848448,-156.462131,0.00019988,2]
[377781259,1754551848458,-151.0,0.00019988,2]
[377781261,1754551848467,-152.4965,0.00019988,2]
[377781263,1754551848476,-151.0,0.00019988,2]
[377781265,1754551848486,-151.0,0.00019988,2]
[377781267,1754551848495,-1720.717896,0.00019988,2]
[377781269,1754551848504,-1720.717896,0.00019988,2]
[377781271,1754551848514,-250.0,0.00019988,2]
[377781273,1754551848524,-150.0,0.00019988,2]
[377781274,1754551848534,-151.0,0.00019988,2]
[377781276,1754551848544,-151.0,0.00019988,2]
[377781278,1754551848553,-151.0,0.00019988,2]
[377781280,1754551848563,-151.0,0.00019988,2]
[377781282,1754551848572,-151.0,0.00019988,2]
[377781284,1754551848581,-1000.0,0.00019995,2]
[377781286,1754551848590,-1024.4208,0.00019995,2]
[377781288,1754551848600,-420.832803,0.00019995,2]
[377781290,1754551848609,-420.832803,0.00019995,2]
[377781292,1754551848619,-249.227757,0.00019995,2]
[377781294,1754551848628,-333.033412,0.00019995,2]
[377781296,1754551848637,-333.033412,0.00019995,2]
[377781298,1754551848647,-151.0,0.00019996,2]
[377781300,1754551848656,-154.029013,0.00019996,2]
[377781302,1754551848665,-151.0,0.00019996,2]
[377781304,1754551848675,-151.0,0.00019996,2]
[377781306,1754551848684,-152.093471,0.00019996,2]
[377781308,1754551848694,-172.948643,0.00019996,2]
[377781310,1754551848703,-151.0,0.00019996,2]
[377781312,1754551848713,-151.0,0.00019996,2]
[377781314,1754551848722,-151.0,0.00019996,2]
[377781316,1754551848732,-151.0,0.00019996,2]
[377781318,1754551848742,-151.0,0.00019996,2]
[377781320,1754551848752,-151.0,0.00019996,2]
[377781322,1754551848761,-151.0,0.00019996,2]
[377781324,1754551848771,-151.0,0.00019996,2]
[377781326,1754551848780,-275.317996,0.00019996,2]
[377781328,1754551848790,-1240.643168,0.00019996,7]
[377781330,1754551848799,-151.0,0.00019996,2]
[377781332,1754551848809,-151.0,0.00019996,2]
[377781334,1754551848819,-151.0,0.00019996,2]
[377781336,1754551848828,-237.644789,0.00019996,2]
[377781338,1754551848837,-151.0,0.00019996,2]
[377781340,1754551848847,-151.0,0.00019996,2]
[377781342,1754551848856,-209.50392,0.00019996,2]
[377781344,1754551848866,-151.0,0.00019996,2]
[377781346,1754551848876,-151.0,0.00019996,2]
[377781348,1754551848885,-151.0,0.00019996,2]
[377781350,1754551848895,-151.0,0.00019996,2]
[377781352,1754551848905,-151.0,0.00019996,2]
[377781354,1754551848914,-9208.0634802,0.00019996,2]
[377781356,1754551848923,-45288.7874999,0.00019996,2]
[377781358,1754551848932,-151.0,0.00019996,2]
[377781360,1754551848942,-288.014815,0.00019996,2]
[377781362,1754551848952,-151.0,0.00019996,2]
[377781363,1754551848962,-151.0,0.00019996,2]
[377781364,1754551848975,-151.0,0.00019996,2]
[377781365,1754551848984,-151.0,0.00019996,2]
[377781366,1754551848994,-151.0,0.00019996,2]
[377781367,1754551849003,-23034.96439128,0.00019996,2]
[377781460,1754551849931,-825.5639399,0.00019996,2]
[377781464,1754551849963,-21428.25916872,0.00019996,2]
[377781466,1754551849977,-1720.717896,0.00019996,2]
[377781468,1754551849987,-1720.717896,0.00019996,2]
[377781470,1754551849996,-1720.717896,0.00019996,2]
[377781472,1754551850005,-1720.717896,0.00019996,2]
[377781474,1754551850015,-1720.717896,0.00019996,2]
[377781476,1754551850024,-1720.717896,0.00019996,2]
[377781478,1754551850033,-1720.717896,0.00019996,2]
[377781480,1754551850043,-1720.717896,0.00019996,2]
[377781482,1754551850053,-318.68145942,0.00019996,2]
[377783811,1754551916093,175.0,0.00019073,7]
[377783822,1754551978913,4092.33237616,0.000165,2]
[377783843,1754552024662,205.58,0.00015068,2]
[377783844,1754552024730,205.58,0.00016718,2]
[377783893,1754552272516,236.06,0.00018924,3]
[377783895,1754552286669,1000.0,0.00018682,4]
[377783931,1754552404474,218.6,0.00013699,2]
[377783939,1754552405789,1000.0,0.00018478,4]
[377783940,1754552405857,1000.0,0.0001878,4]
[377783953,1754552490621,666.0,0.00018908,3]
[377783998,1754552701222,152.0,0.00019259,6]
[377783999,1754552701577,152.0,0.00018169,5]
[377784000,1754552701935,152.0,0.00017079,4]
[377784001,1754552702259,152.0,0.00015989,3]
[377784026,1754552805840,515.0,0.00017694,2]
[377784036,1754552847209,175.0,0.00018759,7]
[377784045,1754552896353,5511.0,0.000195,3]
[377784056,1754552928447,5511.0,0.000195,3]
[377784067,1754552961122,1676.46317015,0.000193,3]
[377784076,1754553004223,1000.0,0.00018317,4]
[377784077,1754553004360,1000.0,0.00018513,4]
[377784086,1754553026145,5511.0,0.00019,3]
[377784098,1754553032415,-285.498,0.00018267,2]
[377784099,1754553032424,-205.58,0.00018367,2]
[377784100,1754553032434,-56947.0,0.000185,2]
[377784101,1754553032444,-1200.0,0.00018566,2]
[377784102,1754553032454,-165.0,0.00018566,2]
[377784103,1754553032463,-1200.0,0.00018566,2]
[377784104,1754553032473,-161.22521196,0.00018567,2]
[377784105,1754553032484,-150.0,0.00018567,2]
[377784106,1754553032493,-150.0,0.00018567,2]
[377784107,1754553032503,-150.0,0.00018567,2]
[377784108,1754553032513,-150.0,0.00018567,2]
[377784109,1754553032522,-150.0,0.00018567,2]
[377784110,1754553032532,-150.0,0.00018567,2]
[377784111,1754553032541,-151.00101726,0.00018567,2]
[377784112,1754553032551,-162.04022789,0.00018567,2]
[377784113,1754553032561,-173.52,0.00018833,2]
[377784114,1754553032570,-200.0,0.00018905,2]
[377784115,1754553032581,-201.86,0.00018935,2]
[377784116,1754553032591,-1000.0,0.00018997,2]
[377784117,1754553032602,-785.92,0.0001901,2]
[377784118,1754553032612,-156.01,0.00019178,2]
[377784119,1754553032621,-3320.62,0.00019178,2]
[377784120,1754553032632,-172.73,0.00019333,2]
[377784121,1754553032641,-600.0,0.00019333,2]
[377784122,1754553032650,-5511.0,0.000195,5]
[377784123,1754553032660,-168.25,0.0001952,2]
[377784124,1754553032669,-277.35679052,0.00019538,2]
[377784125,1754553032681,-5888.0,0.0001955,2]
[377784126,1754553032691,-5888.0,0.00019582,2]
[377784127,1754553032700,-668.13469834,0.00019588,2]
[377784128,1754553032710,-1088.01842635,0.00019596,2]
[377784129,1754553032719,-1073.06489022,0.00019596,2]
[377784130,1754553032728,-150.0,0.00019599,4]
[377784132,1754553032737,-5888.0,0.00019691,2]
[377784134,1754553032747,-173.52,0.00019775,2]
[377784135,1754553032756,-189.14396,0.000198,2]
[377784136,1754553032765,-1293.976,0.00019805,2]
[377784137,1754553032775,-5888.0,0.00019834,2]
[377784138,1754553032784,-302.66771322,0.00019866,2]
[377784139,1754553032794,-500.0,0.00019866,2]
[377784140,1754553032803,-600.0,0.00019866,2]
[377784141,1754553032812,-160.0,0.00019866,2]
[377784142,1754553032822,-500.0,0.00019866,2]
[377784143,1754553032831,-375.15703933,0.00019866,2]
[377784144,1754553032841,-8125.0667,0.00019878,2]
[377784145,1754553032850,-4479.10827957,0.00019896,2]
[377784146,1754553032859,-151.13716097,0.000199,2]
[377784147,1754553032869,-5888.0,0.00019923,2]